fUST/lending_fUST_20240919
["ID","MTS","AMOUNT","RATE_DAILY","PERIOD"]
[338572718,1726740660582,-276.526682,0.00017249,2]
[338572719,1726740660592,-500.0,0.0001726,2]
[338572720,1726740660606,-500.0,0.0001726,2]
[338572721,1726740660617,-501.40673444,0.0001726,2]
[338572722,1726740660628,-500.0,0.0001726,2]
[338572723,1726740660639,-500.0,0.0001726,2]
[338572724,1726740660650,-411.40949368,0.0001726,2]
[338572725,1726740660662,-500.0,0.0001726,2]
[338572726,1726740660672,-501.50056694,0.0001726,2]
[338572727,1726740660684,-500.0,0.0001726,2]
[338572728,1726740660693,-949.74,0.0001726,2]
[338572729,1726740660703,-500.0,0.0001726,2]
[338572730,1726740660713,-500.0,0.0001726,2]
[338572731,1726740660722,-500.0,0.0001726,2]
[338572732,1726740660732,-500.0,0.0001726,2]
[338572733,1726740660742,-654.45,0.0001726,2]
[338572734,1726740660752,-500.0,0.0001726,2]
[338572735,1726740660762,-1068.34,0.0001726,2]
[338572736,1726740660773,-500.0,0.0001726,2]
[338572737,1726740660783,-1371.04,0.0001726,2]
[338572738,1726740660793,-500.0,0.0001726,2]
[338572739,1726740660802,-500.0,0.0001726,2]
[338572740,1726740660812,-500.0,0.0001726,2]
[338572741,1726740660822,-500.0,0.0001726,2]
[338572742,1726740660834,-565.56,0.0001726,2]
[338572743,1726740660845,-500.0,0.0001726,2]
[338572744,1726740660857,-540.19713358,0.0001726,2]
[338572745,1726740660867,-500.0,0.0001726,2]
[338572746,1726740660877,-500.0,0.0001726,2]
[338572747,1726740660887,-500.0,0.0001726,2]
[338572748,1726740660897,-500.0,0.0001726,2]
[338572749,1726740660907,-500.0,0.0001726,2]
[338572750,1726740660916,-500.0,0.0001726,2]
[338572751,1726740660926,-500.0,0.0001726,2]
[338572752,1726740660935,-500.0,0.0001726,2]
[338572753,1726740660945,-500.0,0.0001726,2]
[338572754,1726740660955,-500.0,0.0001726,2]
[338572755,1726740660964,-803.7,0.0001726,2]
[338572756,1726740660974,-500.0,0.0001726,2]
[338572757,1726740660983,-500.0,0.0001726,2]
[338572758,1726740660993,-543.95,0.0001726,2]
[338572759,1726740661002,-500.0,0.0001726,2]
[338572760,1726740661012,-500.0,0.0001726,2]
[338572761,1726740661021,-500.0,0.0001726,2]
[338572762,1726740661031,-500.0,0.0001726,2]
[338572763,1726740661040,-500.0,0.0001726,2]
[338572764,1726740661050,-500.0,0.0001726,2]
[338572765,1726740661059,-1662.48,0.0001726,2]
[338572766,1726740661068,-671.86,0.0001726,2]
[338572767,1726740661078,-500.0,0.0001726,2]
[338572768,1726740661088,-560.77,0.0001726,2]
[338572769,1726740661097,-500.0,0.0001726,2]
[338572770,1726740661107,-865.34,0.0001726,2]
[338572771,1726740661117,-500.0,0.0001726,2]
[338572772,1726740661126,-500.0,0.0001726,2]
[338572773,1726740661135,-500.0,0.0001726,2]
[338572774,1726740661145,-3295.12,0.0001726,2]
[338572775,1726740661155,-500.0,0.0001726,2]
[338572776,1726740661164,-948.97,0.0001726,2]
[338572777,1726740661174,-500.0,0.0001726,2]
[338572778,1726740661183,-500.0,0.0001726,2]
[338572779,1726740661193,-974.21,0.0001726,2]
[338572780,1726740661203,-500.0,0.0001726,2]
[338572781,1726740661212,-501.13,0.0001726,2]
[338572782,1726740661222,-151.0,0.0001726,2]
[338572783,1726740661232,-500.0,0.0001726,2]
[338572784,1726740661242,-1043.35,0.0001726,2]
[338572785,1726740661252,-581.88401579,0.0001726,2]
[338572786,1726740661262,-500.0,0.0001726,2]
[338572787,1726740661271,-661.81,0.0001726,2]
[338572788,1726740661280,-500.0,0.0001726,2]
[338572789,1726740661290,-500.0,0.0001726,2]
[338572790,1726740661299,-523.67325158,0.0001726,2]
[338572791,1726740661308,-500.0,0.0001726,2]
[338572792,1726740661318,-500.0,0.0001726,2]
[338572793,1726740661329,-512.31809687,0.0001726,2]
[338572794,1726740661338,-500.0,0.0001726,2]
[338572795,1726740661349,-500.0,0.0001726,2]
[338572796,1726740661360,-697.62,0.0001726,2]
[338572797,1726740661371,-2324.75,0.0001726,2]
[338572798,1726740661381,-500.0,0.0001726,2]
[338572799,1726740661390,-1153.24,0.0001726,2]
[338572800,1726740661400,-854.21,0.0001726,2]
[338572801,1726740661410,-525.29356809,0.0001726,2]
[338572802,1726740661419,-500.0,0.0001726,2]
[338572803,1726740661430,-500.0,0.0001726,2]
[338572804,1726740661440,-500.0,0.0001726,2]
[338572805,1726740661450,-594.06,0.0001726,2]
[338572806,1726740661460,-1123.32,0.0001726,2]
[338572807,1726740661470,-1204.11,0.0001726,2]
[338572808,1726740661485,-841.72,0.0001726,2]
[338572809,1726740661495,-1003.28,0.0001726,2]
[338572810,1726740661504,-500.0,0.0001726,2]
[338572811,1726740661514,-1282.13,0.0001726,2]
[338572812,1726740661523,-609.28,0.0001726,2]
[338572813,1726740661533,-1543.84,0.0001726,2]
[338572814,1726740661542,-1151.05,0.0001726,2]
[338572815,1726740661552,-500.0,0.0001726,2]
[338572816,1726740661561,-500.0,0.0001726,2]
[338572817,1726740661571,-850.95,0.0001726,2]
[338572818,1726740661581,-500.0,0.0001726,2]
[338572819,1726740661590,-500.0,0.0001726,2]
[338572820,1726740661602,-573.41,0.0001726,2]
[338572821,1726740661611,-798.1,0.0001726,2]
[338572822,1726740661621,-907.63,0.0001726,2]
[338572823,1726740661630,-500.0,0.0001726,2]
[338572824,1726740661640,-1405.97,0.0001726,2]
[338572825,1726740661649,-500.0,0.0001726,2]
[338572826,1726740661659,-720.15,0.0001726,2]
[338572827,1726740661668,-555.25968726,0.0001726,2]
[338572828,1726740661678,-500.0,0.0001726,2]
[338572829,1726740661687,-500.0,0.0001726,2]
[338572830,1726740661696,-500.0,0.0001726,2]
[338572831,1726740661706,-500.0,0.0001726,2]
[338572832,1726740661715,-543.35,0.0001726,2]
[338572833,1726740661726,-500.0,0.0001726,2]
[338572834,1726740661736,-500.0,0.0001726,2]
[338572835,1726740661746,-500.0,0.0001726,2]
[338572836,1726740661755,-917.37,0.0001726,2]
[338572837,1726740661765,-500.0,0.0001726,2]
[338572838,1726740661774,-1749.37,0.0001726,2]
[338572839,1726740661784,-1480.0,0.0001726,2]
[338572840,1726740661794,-773.55,0.0001726,2]
[338572841,1726740661804,-1214.97,0.0001726,2]
[338572842,1726740661814,-556.41,0.0001726,2]
[338572843,1726740661824,-1204.95,0.0001726,2]
[338572844,1726740661834,-1291.32,0.0001726,2]
[338572845,1726740661846,-500.0,0.0001726,2]
[338572846,1726740661857,-906.12,0.0001726,2]
[338572847,1726740661867,-151.0,0.0001726,2]
[338572848,1726740661877,-500.0,0.0001726,2]
[338572849,1726740661886,-500.0,0.0001726,2]
[338572850,1726740661896,-777.76,0.0001726,2]
[338572851,1726740661906,-839.56,0.0001726,2]
[338572852,1726740661915,-500.0,0.0001726,2]
[338572853,1726740661926,-1362.74,0.0001726,2]
[338572854,1726740661935,-567.75,0.0001726,2]
[338572855,1726740661945,-605.85,0.0001726,2]
[338572856,1726740661955,-1327.2,0.0001726,2]
[338572857,1726740661964,-212.77,0.0001726,2]
[338572858,1726740661977,-727.02,0.0001726,2]
[338572859,1726740661995,-816.62,0.0001726,2]
[338572860,1726740662006,-910.3,0.0001726,2]
[338572861,1726740662016,-500.0,0.0001726,2]
[338572862,1726740662025,-500.0,0.0001726,2]
[338572863,1726740662035,-909.72,0.0001726,2]
[338572864,1726740662045,-500.0,0.0001726,2]
[338572865,1726740662056,-971.94,0.0001726,2]
[338572866,1726740662067,-500.0,0.0001726,2]
[338572867,1726740662077,-712.6,0.0001726,2]
[338572868,1726740662088,-500.0,0.0001726,2]
[338572869,1726740662097,-500.0,0.0001726,2]
[338572870,1726740662109,-500.0,0.0001726,2]
[338572871,1726740662120,-1095.60737714,0.0001726,2]
[338572879,1726741376285,10000.0,0.00014013,2]
[338572880,1726741384274,10000.0,0.00014013,2]
[338572881,1726741391249,10000.0,0.00014013,2]
[338572882,1726741400132,10000.0,0.00014013,2]
[338572883,1726741400737,508.21,0.00010959,2]
[338572884,1726741411704,423.51,0.00010959,2]
[338572885,1726741413057,8518.89,0.00014013,2]
[338572886,1726741422227,352.92,0.00010959,2]
[338572887,1726741432758,294.1,0.00010959,2]
[338572888,1726741443288,245.09,0.00010959,2]
[338572889,1726741453954,204.24,0.00010959,2]
[338572890,1726741464699,170.2,0.00010959,2]
[338572891,1726741475307,851.02,0.00010959,2]
[338572892,1726741542744,1554.61744883,0.0002051,120]
[338572893,1726741546152,-309.44169803,0.00014467,2]
[338572895,1726741629148,-270.0,0.00014062,2]
[338572896,1726741631113,-527.62098773,0.00014062,2]
[338572898,1726741633369,150.5,0.00016403,120]
[338572900,1726741633825,150.5,0.00016393,120]
[338572901,1726741634310,150.5,0.00016383,120]
[338572902,1726741634774,150.5,0.0001779,120]
[338572903,1726741635254,230.26,0.0001778,120]
[338572909,1726741745106,-104.94735727,0.00014062,2]
[338572910,1726741745127,-1159.118829,0.00014097,2]
[338572911,1726741745149,-1114.15431927,0.00014467,2]
[338572912,1726741745171,-300.0,0.00014736,2]
[338572913,1726741745192,-300.0,0.00014736,2]
[338572914,1726741745215,-15386.33092935,0.00014737,2]
[338572915,1726741762098,-8392.9907934,0.00014737,2]
[338572916,1726741770110,-1120.67827725,0.00014737,2]
[338572917,1726741770133,-176.4192768,0.00014743,2]
[338572918,1726741770155,-159.549397,0.00014802,2]
[338572919,1726741770176,-159.549397,0.00014879,2]
[338572920,1726741770197,-1495.8305437,0.00014887,2]
[338572921,1726741770219,-159.549397,0.00014956,2]
[338572922,1726741770240,-159.549397,0.00015033,2]
[338572923,1726741770263,-159.549397,0.0001511,2]
[338572924,1726741770289,-159.549397,0.00015187,2]
[338572925,1726741770311,-159.549397,0.00015264,2]
[338572926,1726741770336,-159.549397,0.00015341,2]
[338572927,1726741770359,-159.549397,0.00015419,2]
[338572928,1726741770382,-159.549397,0.00015496,2]
[338572929,1726741770404,-159.549397,0.00015573,2]
[338572930,1726741772112,-500.0,0.00016053,2]
[338572931,1726741772136,-150.0,0.00016109,2]
[338572932,1726741772158,-420.0,0.0001621,2]
[338572933,1726741772180,-1224.88751645,0.00016315,2]
[338572934,1726741772201,-500.0,0.00016373,2]
[338572935,1726741772224,-244.89069988,0.00016397,2]
[338572936,1726741772246,-500.0,0.00016397,2]
[338572937,1726741772269,-500.0,0.00016397,2]
[338572938,1726741772293,-500.0,0.00016397,2]
[338572939,1726741772314,-500.0,0.00016397,2]
[338572940,1726741772336,-500.0,0.00016397,2]
[338572941,1726741772356,-250.0,0.00016397,2]
[338572942,1726741772378,-500.0,0.00016397,2]
[338572943,1726741772399,-500.0,0.00016397,2]
[338572944,1726741772422,-500.0,0.00016397,2]
[338572945,1726741772444,-500.0,0.00016397,2]
[338572946,1726741772466,-189.73036647,0.00016397,2]
[338572947,1726741772488,-500.0,0.00016397,2]
[338572948,1726741772512,-500.0,0.00016397,2]
[338572949,1726741772533,-500.0,0.00016397,2]
[338572950,1726741772796,-500.0,0.00016397,2]
[338572951,1726741772821,-500.0,0.00016397,2]
[338572952,1726741772843,-500.0,0.00016397,2]
[338572953,1726741772869,-500.0,0.00016397,2]
[338572954,1726741772893,-500.0,0.00016397,2]
[338572955,1726741772916,-500.0,0.00016397,2]
[338572956,1726741772940,-500.0,0.00016397,2]
[338572957,1726741772964,-500.0,0.00016397,2]
[338572958,1726741772987,-500.0,0.00016397,2]
[338572959,1726741773010,-500.0,0.00016397,2]
[338572960,1726741773037,-508.06363823,0.00016397,2]
[338572961,1726741773065,-500.0,0.00016397,2]
[338572962,1726741773089,-500.0,0.00016397,2]
[338572963,1726741773125,-500.0,0.00016397,2]
[338572964,1726741773148,-500.0,0.00016397,2]
[338572965,1726741773170,-500.0,0.00016397,2]
[338572966,1726741773196,-500.0,0.00016397,2]
[338572967,1726741773222,-500.0,0.00016397,2]
[338572968,1726741773246,-500.0,0.00016397,2]
[338572969,1726741773272,-500.0,0.00016397,2]
[338572970,1726741773297,-500.0,0.00016397,2]
[338572971,1726741773320,-500.0,0.00016397,2]
[338572972,1726741773345,-500.0,0.00016397,2]
[338572973,1726741773376,-500.0,0.00016397,2]
[338572974,1726741773400,-500.0,0.00016397,2]
[338572975,1726741773423,-500.0,0.00016397,2]
[338572976,1726741773446,-500.0,0.00016397,2]
[338572977,1726741773468,-500.0,0.00016397,2]
[338572978,1726741773492,-500.0,0.00016397,2]
[338572979,1726741773514,-500.0,0.00016397,2]
[338572980,1726741773538,-500.0,0.00016397,2]
[338572981,1726741773560,-500.0,0.00016397,2]
[338572982,1726741773585,-500.0,0.00016397,2]
[338572983,1726741773612,-500.0,0.00016397,2]
[338572984,1726741773636,-500.0,0.00016397,2]
[338572985,1726741773659,-500.0,0.00016397,2]
[338572986,1726741773686,-500.0,0.00016397,2]
[338572987,1726741773710,-500.0,0.00016397,2]
[338572988,1726741773734,-500.0,0.00016397,2]
[338572989,1726741773759,-468.47293366,0.00016397,2]
[338572990,1726741773782,-500.0,0.00016397,2]
[338572991,1726741773806,-500.0,0.00016397,2]
[338572992,1726741773831,-500.0,0.00016397,2]
[338572993,1726741773854,-500.0,0.00016397,2]
[338572994,1726741773879,-500.0,0.00016397,2]
[338572995,1726741773902,-500.0,0.00016397,2]
[338572996,1726741773926,-500.0,0.00016397,2]
[338572997,1726741773951,-500.0,0.00016397,2]
[338572998,1726741773974,-500.0,0.00016397,2]
[338572999,1726741773998,-500.0,0.00016397,2]
[338573000,1726741774023,-500.0,0.00016397,2]
[338573001,1726741774047,-500.0,0.00016397,2]
[338573002,1726741774071,-500.0,0.00016397,2]
[338573003,1726741774096,-500.0,0.00016397,2]
[338573004,1726741774121,-500.0,0.00016397,2]
[338573005,1726741774145,-500.0,0.00016397,2]
[338573006,1726741774168,-164.11613718,0.00016397,2]
[338573007,1726741774192,-500.0,0.00016397,2]
[338573008,1726741774218,-500.0,0.00016397,2]
[338573009,1726741774240,-500.0,0.00016397,2]
[338573010,1726741774263,-500.0,0.00016397,2]
[338573011,1726741774288,-500.0,0.00016397,2]
[338573012,1726741774312,-500.0,0.00016397,2]
[338573013,1726741774335,-500.0,0.00016397,2]
[338573014,1726741774359,-500.0,0.00016397,2]
[338573015,1726741774385,-500.0,0.00016397,2]
[338573016,1726741774408,-500.0,0.00016397,2]
[338573017,1726741774431,-500.0,0.00016397,2]
[338573018,1726741774454,-500.0,0.00016397,2]
[338573019,1726741774476,-500.0,0.00016397,2]
[338573020,1726741774500,-500.0,0.00016397,2]
[338573021,1726741774525,-500.0,0.00016397,2]
[338573022,1726741774549,-500.0,0.00016397,2]
[338573023,1726741774572,-500.0,0.00016397,2]
[338573024,1726741774596,-500.0,0.00016397,2]
[338573025,1726741774622,-500.0,0.00016397,2]
[338573026,1726741774646,-2626.1047978,0.00016397,2]
[338573027,1726741774669,-500.0,0.00016397,2]
[338573028,1726741774695,-2626.1047978,0.00016397,2]
[338573029,1726741774717,-500.0,0.00016397,2]
[338573030,1726741774741,-500.0,0.00016397,2]
[338573031,1726741774765,-2626.1047978,0.00016397,2]
[338573032,1726741774791,-500.0,0.00016397,2]
[338573033,1726741774815,-2626.1047978,0.00016397,2]
[338573034,1726741774838,-500.0,0.00016397,2]
[338573035,1726741774863,-2626.1047978,0.00016397,2]
[338573036,1726741774889,-500.0,0.00016397,2]
[338573037,1726741774912,-500.0,0.00016397,2]
[338573038,1726741774936,-2626.1047978,0.00016397,2]
[338573039,1726741774958,-500.0,0.00016397,2]
[338573040,1726741774981,-2626.1047978,0.00016397,2]
[338573041,1726741775003,-500.0,0.00016397,2]
[338573042,1726741775026,-274.90288276,0.00016397,2]
[338573043,1726741775048,-2626.1047978,0.00016397,2]
[338573044,1726741775071,-2626.1047978,0.00016397,2]
[338573045,1726741775092,-500.0,0.00016397,2]
[338573046,1726741775115,-500.0,0.00016397,2]
[338573047,1726741775140,-2626.1047978,0.00016397,2]
[338573048,1726741775164,-500.0,0.00016397,2]
[338573049,1726741775186,-2626.1047978,0.00016397,2]
[338573050,1726741775208,-500.0,0.00016397,2]
[338573051,1726741775230,-2626.1047978,0.00016397,2]
[338573052,1726741775253,-500.0,0.00016397,2]
[338573053,1726741775279,-2626.1047978,0.00016397,2]
[338573054,1726741775302,-500.0,0.00016397,2]
[338573055,1726741775328,-500.0,0.00016397,2]
[338573056,1726741775352,-2626.1047978,0.00016397,2]
[338573057,1726741775374,-500.0,0.00016397,2]
[338573058,1726741775398,-2626.1047978,0.00016397,2]
[338573059,1726741775421,-500.0,0.00016397,2]
[338573060,1726741775443,-500.0,0.00016397,2]
[338573061,1726741775465,-500.0,0.00016397,2]
[338573062,1726741775488,-2626.1047978,0.00016397,2]
[338573063,1726741775511,-500.0,0.00016397,2]
[338573064,1726741775535,-2626.1047978,0.00016397,2]
[338573065,1726741775558,-500.0,0.00016397,2]
[338573066,1726741775582,-500.0,0.00016397,2]
[338573067,1726741775606,-2626.1047978,0.00016397,2]
[338573068,1726741775628,-500.0,0.00016397,2]
[338573069,1726741775651,-2626.1047978,0.00016397,2]
[338573070,1726741775674,-500.0,0.00016397,2]
[338573071,1726741775697,-2626.1047978,0.00016397,2]
[338573072,1726741775721,-500.0,0.00016397,2]
[338573073,1726741775745,-2626.1047978,0.00016397,2]
[338573074,1726741775766,-500.0,0.00016397,2]
[338573075,1726741775791,-2626.1047978,0.00016397,2]
[338573076,1726741775813,-240.84675467,0.00016397,2]
[338573088,1726741806609,246.5224538,0.00015399,2]
[338573145,1726741831773,-301.70782929,0.00016373,2]
[338573147,1726741831783,-434.52958068,0.00016373,2]
[338573159,1726741831889,-67.3270307,0.00016373,2]
[338573161,1726741831899,-369.00819826,0.00016373,2]
[338573251,1726741837784,-202.83877894,0.00016273,2]
[338573252,1726741837794,-130.99180174,0.00016373,2]
[338573254,1726741837803,-500.58397951,0.00016373,2]
[338573256,1726741837813,-500.0,0.00016373,2]
[338573258,1726741837823,-300.0,0.00016396,2]
[338573260,1726741837832,-259.15324533,0.00016397,2]
[338573262,1726741837841,-1085.83699755,0.00016397,2]
[338573268,1726741837901,-1540.26780025,0.00016397,2]
[338573269,1726741837912,-500.0,0.00016397,2]
[338573270,1726741837921,-2626.1047978,0.00016397,2]
[338573271,1726741837931,-500.0,0.00016397,2]
[338573273,1726741837940,-2626.1047978,0.00016397,2]
[338573275,1726741837949,-500.0,0.00016397,2]
[338573276,1726741837958,-2626.1047978,0.00016397,2]
[338573277,1726741837967,-2626.1047978,0.00016397,2]
[338573278,1726741837977,-500.0,0.00016397,2]
[338573279,1726741837986,-2626.1047978,0.00016397,2]
[338573280,1726741837995,-500.0,0.00016397,2]
[338573281,1726741838004,-2626.1047978,0.00016397,2]
[338573282,1726741838013,-2626.1047978,0.00016397,2]
[338573283,1726741838022,-500.0,0.00016397,2]
[338573285,1726741838031,-2626.1047978,0.00016397,2]
[338573288,1726741838049,-2626.1047978,0.00016397,2]
[338573290,1726741838061,-2626.1047978,0.00016397,2]
[338573291,1726741838070,-2626.1047978,0.00016397,2]
[338573292,1726741838080,-2626.1047978,0.00016397,2]
[338573293,1726741838089,-2626.1047978,0.00016397,2]
[338573294,1726741838098,-2626.1047978,0.00016397,2]
[338573295,1726741838108,-2626.1047978,0.00016397,2]
[338573296,1726741838118,-500.0,0.00016397,2]
[338573297,1726741838127,-500.0,0.00016397,2]
[338573298,1726741838137,-500.0,0.00016397,2]
[338573299,1726741838146,-500.0,0.00016397,2]
[338573300,1726741838158,-500.0,0.00016397,2]
[338573301,1726741838167,-499.99999999,0.00016397,2]
[338573302,1726741838176,-2542.73639151,0.00016397,2]
[338573303,1726741838187,-2542.73639151,0.00016397,2]
[338573304,1726741838196,-2542.73639151,0.00016397,2]
[338573305,1726741838206,-2542.73639151,0.00016397,2]
[338573306,1726741838215,-2542.73639151,0.00016397,2]
[338573307,1726741838224,-2542.73639151,0.00016397,2]
[338573308,1726741838233,-2542.73639151,0.00016397,2]
[338573309,1726741838243,-2542.73639151,0.00016397,2]
[338573310,1726741838252,-2542.73639151,0.00016397,2]
[338573311,1726741838261,-2542.73639151,0.00016397,2]
[338573312,1726741838271,-2542.73639151,0.00016397,2]
[338573313,1726741838280,-2542.73639151,0.00016397,2]
[338573314,1726741838290,-2542.73639151,0.00016397,2]
[338573315,1726741838300,-2542.73639151,0.00016397,2]
[338573316,1726741838312,-2542.73639151,0.00016397,2]
[338573317,1726741838321,-2542.73639151,0.00016397,2]
[338573318,1726741838331,-2542.73639151,0.00016397,2]
[338573319,1726741838340,-2542.73639151,0.00016397,2]
[338573320,1726741838351,-2542.73639151,0.00016397,2]
[338573321,1726741838361,-2542.73639152,0.00016397,2]
[338573322,1726741838371,-2542.73639152,0.00016397,2]
[338573323,1726741838380,-2542.73639152,0.00016397,2]
[338573324,1726741838391,-2542.73639152,0.00016397,2]
[338573325,1726741838401,-2542.73639152,0.00016397,2]
[338573326,1726741838413,-2542.73639152,0.00016397,2]
[338573327,1726741838423,-2542.73639152,0.00016397,2]
[338573328,1726741838433,-2542.73639152,0.00016397,2]
[338573329,1726741838443,-500.0,0.00016397,2]
[338573330,1726741838452,-500.0,0.00016397,2]
[338573331,1726741838462,-500.0,0.00016397,2]
[338573332,1726741838472,-500.0,0.00016397,2]
[338573333,1726741838481,-500.0,0.00016397,2]
[338573334,1726741838490,-500.0,0.00016397,2]
[338573335,1726741838499,-500.0,0.00016397,2]
[338573336,1726741838508,-500.0,0.00016397,2]
[338573337,1726741838517,-500.0,0.00016397,2]
[338573338,1726741838526,-500.0,0.00016397,2]
[338573339,1726741838536,-500.0,0.00016397,2]
[338573340,1726741838545,-500.0,0.00016397,2]
[338573341,1726741838555,-639.32568199,0.00016397,2]
[338573342,1726741838564,-500.0,0.00016397,2]
[338573343,1726741838574,-500.0,0.00016397,2]
[338573344,1726741838583,-500.0,0.00016397,2]
[338573345,1726741838593,-500.0,0.00016397,2]
[338573346,1726741838602,-500.0,0.00016397,2]
[338573347,1726741838612,-500.0,0.00016397,2]
[338573348,1726741838621,-500.0,0.00016397,2]
[338573349,1726741838630,-500.0,0.00016397,2]
[338573350,1726741838640,-500.0,0.00016397,2]
[338573351,1726741838650,-500.0,0.00016397,2]
[338573352,1726741838666,-500.0,0.00016397,2]
[338573353,1726741838676,-699.638391,0.00016398,2]
[338573354,1726741838685,-212348.933827,0.00016398,2]
[338573355,1726741838695,-39098.8530014,0.00016398,2]
[338573356,1726741838705,-303.01783331,0.00016402,2]
[338573357,1726741838715,-500.0,0.00016402,2]
[338573358,1726741838724,-606.68486328,0.00016402,2]
[338573359,1726741838734,-500.0,0.00016402,2]
[338573360,1726741838744,-500.0,0.00016402,2]
[338573361,1726741838754,-500.0,0.00016402,2]
[338573362,1726741838763,-604.17570647,0.00016402,2]
[338573363,1726741838773,-500.0,0.00016402,2]
[338573364,1726741838782,-230.51817643,0.00016402,2]
[338573365,1726741838792,-500.0,0.00016402,2]
[338573366,1726741838801,-500.0,0.00016402,2]
[338573367,1726741838811,-500.0,0.00016402,2]
[338573368,1726741838821,-500.0,0.00016402,2]
[338573369,1726741838831,-500.0,0.00016402,2]
[338573370,1726741838840,-500.0,0.00016402,2]
[338573371,1726741838849,-500.0,0.00016402,2]
[338573372,1726741838859,-446.30993661,0.00016402,2]
[338573373,1726741838868,-500.0,0.00016402,2]
[338573374,1726741838877,-171.76581785,0.00016402,2]
[338573375,1726741838887,-141565.955885,0.00016403,2]
[338573376,1726741838896,-65164.7550024,0.00016403,2]
[338573377,1726741838908,-156395.412006,0.00016405,2]
[338573378,1726741838918,-500.0,0.00016438,2]
[338573379,1726741838927,-500.0,0.00016438,2]
[338573380,1726741838936,-500.0,0.00016438,2]
[338573381,1726741838946,-501.02762435,0.00016438,2]
[338573382,1726741838958,-500.0,0.00016438,2]
[338573383,1726741838968,-500.0,0.00016438,2]
[338573384,1726741838978,-500.0,0.00016438,2]
[338573385,1726741838987,-500.0,0.00016438,2]
[338573386,1726741838996,-500.0,0.00016438,2]
[338573387,1726741839006,-500.0,0.00016438,2]
[338573388,1726741839016,-500.0,0.00016438,2]
[338573389,1726741839026,-500.0,0.00016438,2]
[338573390,1726741839036,-496.63414061,0.00016438,2]
[338573391,1726741839046,-614.01,0.00016438,2]
[338573392,1726741839055,-500.0,0.00016438,2]
[338573393,1726741839066,-500.0,0.00016438,2]
[338573394,1726741839075,-1125.79,0.00016438,2]
[338573395,1726741839085,-500.0,0.00016438,2]
[338573396,1726741839094,-956.93,0.00016438,2]
[338573399,1726741839424,-500.0,0.00016438,2]
[338573400,1726741839435,-1123.64,0.00016438,2]
[338573401,1726741839447,-500.0,0.00016438,2]
[338573402,1726741839457,-500.0,0.00016438,2]
[338573403,1726741839467,-500.0,0.00016438,2]
[338573405,1726741839476,-1251.6,0.00016438,2]
[338573407,1726741839485,-559.76,0.00016438,2]
[338573410,1726741839494,-648.19244531,0.00016438,2]
[338573412,1726741839504,-500.0,0.00016438,2]
[338573414,1726741839513,-500.0,0.00016438,2]
[338573416,1726741839522,-830.69,0.00016438,2]
[338573417,1726741839532,-151.96863355,0.00016438,2]
[338573419,1726741839542,-500.0,0.00016438,2]
[338573421,1726741839552,-500.0,0.00016438,2]
[338573423,1726741839563,-594.78,0.00016438,2]
[338573425,1726741839572,-500.0,0.00016438,2]
[338573427,1726741839582,-500.0,0.00016438,2]
[338573429,1726741839591,-500.0,0.00016438,2]
[338573430,1726741839600,-500.0,0.00016438,2]
[338573432,1726741839610,-500.0,0.00016438,2]
[338573434,1726741839620,-777.96,0.00016438,2]